fUSD/lending_fUSD_20250806
["ID","MTS","AMOUNT","RATE_DAILY","PERIOD"]
[377602315,1754448878106,-155.07297553,0.0003989,30]
[377602316,1754448878115,-600.0,0.0003997,7]
[377602317,1754448878124,-1100.0,0.0003997,7]
[377602318,1754448878133,-500.0,0.00039993,10]
[377602319,1754448878143,-3243.79270134,0.00039999,2]
[377602320,1754448878151,-1000.0,0.00039999,2]
[377602321,1754448878160,-1000.0,0.00039999,2]
[377602322,1754448878169,-180.3428954,0.00039999,31]
[377602323,1754448878178,-300.0,0.00039999,31]
[377602324,1754448878189,-474.62219085,0.00039999,31]
[377602325,1754448878198,-392.86852903,0.00039999,31]
[377602326,1754448878207,-500.0,0.00039999,31]
[377602327,1754448878216,-612.24567424,0.00039999,31]
[377602328,1754448878225,-608.38494459,0.00039999,31]
[377602329,1754448878233,-500.0,0.00039999,31]
[377602330,1754448878242,-527.84239482,0.00039999,31]
[377602331,1754448878251,-648.27421599,0.00039999,31]
[377602332,1754448878259,-500.0,0.00039999,31]
[377602333,1754448878268,-500.0,0.00039999,31]
[377602334,1754448878278,-500.0,0.00039999,31]
[377602335,1754448878288,-635.07461943,0.0004,120]
[377602336,1754448878297,-500.0,0.0004,120]
[377602337,1754448878305,-1523.97821805,0.0004,2]
[377602338,1754448878315,-464.23719322,0.0004,2]
[377602339,1754448878323,-162.92584116,0.0004,120]
[377602340,1754448878332,-407.6241665,0.0004,120]
[377602341,1754448878341,-498.14061113,0.0004,20]
[377602342,1754448878350,-335.8867889,0.0004,30]
[377602343,1754448878359,-155.643466,0.0004,14]
[377602344,1754448878367,-1106.87216,0.0004,14]
[377602345,1754448878376,-887.819081,0.0004,14]
[377602346,1754448878385,-1255.615788,0.0004,14]
[377602347,1754448878394,-192.679796,0.0004,14]
[377602348,1754448878403,-1245.68,0.0004,120]
[377602349,1754448878412,-1721.73,0.0004,14]
[377602350,1754448878421,-300.0,0.0004,120]
[377602351,1754448878430,-155.350478,0.0004,14]
[377602352,1754448878439,-179.16077517,0.0004,120]
[377602353,1754448878448,-427.93080517,0.0004,120]
[377602354,1754448878457,-155.35048,0.0004,14]
[377602355,1754448878466,-444.06648301,0.0004,14]
[377602356,1754448878475,-155.350478,0.0004,14]
[377602357,1754448878608,-1879.66,0.0004,14]
[377602358,1754448878617,-517.54,0.0004,14]
[377602359,1754448878626,-400.0,0.0004,14]
[377602360,1754448878639,-933.27,0.0004,14]
[377602361,1754448878647,-708.86,0.0004,14]
[377602362,1754448878656,-412.42,0.0004,14]
[377602363,1754448878665,-400.0,0.0004,14]
[377602364,1754448878674,-165.794744,0.0004,14]
[377602365,1754448878683,-415.77,0.0004,14]
[377602366,1754448878692,-1925.55,0.0004,14]
[377602367,1754448878702,-866.96,0.0004,14]
[377602368,1754448878711,-523.82,0.0004,14]
[377602369,1754448878720,-1993.73,0.0004,14]
[377602370,1754448878729,-478.37,0.0004,14]
[377602371,1754448878738,-1455.59,0.0004,14]
[377602372,1754448878748,-3464.4609953,0.0004,2]
[377602373,1754448878758,-3839.4500784,0.0004,2]
[377602374,1754448878769,-4214.4391614,0.0004,2]
[377602375,1754448878779,-4589.4282444,0.0004,2]
[377602376,1754448878788,-1137.51,0.0004,14]
[377602377,1754448878798,-401.60227165,0.0004,14]
[377602378,1754448878807,-1494.66,0.0004,14]
[377602379,1754448878817,-2002.12,0.0004,14]
[377602380,1754448878827,-400.0,0.0004,14]
[377602381,1754448878836,-1040.39,0.0004,14]
[377602382,1754448878845,-87141.4800178,0.0004,2]
[377602383,1754448878856,-95652.3612681,0.0004,2]
[377602384,1754448878865,-104163.2425184,0.0004,2]
[377602385,1754448878875,-400.0,0.0004,14]
[377602386,1754448878884,-662.16,0.0004,14]
[377602387,1754448878894,-400.0,0.0004,14]
[377602388,1754448878904,-2153.57,0.0004,14]
[377602389,1754448878916,-1355.9,0.0004,14]
[377602390,1754448878926,-904.68,0.0004,14]
[377602391,1754448878936,-8271.7598399,0.0004,2]
[377602392,1754448878945,-9324.7340332,0.0004,2]
[377602393,1754448878955,-10377.7082266,0.0004,2]
[377602394,1754448878965,-400.0,0.0004,14]
[377602395,1754448878974,-545.31,0.0004,14]
[377602396,1754448878984,-400.0,0.0004,14]
[377602397,1754448878994,-400.0,0.0004,14]
[377602398,1754448879004,-400.0,0.0004,14]
[377602399,1754448879013,-1848.23,0.0004,14]
[377602400,1754448879023,-526.3327059,0.0004,2]
[377602401,1754448879032,-603.1066654,0.0004,2]
[377602402,1754448879042,-679.8806249,0.0004,2]
[377602403,1754448879051,-756.6545843,0.0004,2]
[377602404,1754448879060,-837.58,0.0004,14]
[377602405,1754448879070,-400.0,0.0004,14]
[377602406,1754448879080,-275.83469293,0.0004,14]
[377602407,1754448879089,-426.53,0.0004,14]
[377602408,1754448879099,-2053.66,0.0004,14]
[377602409,1754448879109,-463.84,0.0004,14]
[377602410,1754448879119,-1680.73,0.0004,14]
[377602411,1754448879129,-400.0,0.0004,14]
[377602412,1754448879138,-589.79,0.0004,14]
[377602413,1754448879147,-485.82,0.0004,14]
[377602414,1754448879156,-1174.99,0.0004,14]
[377602415,1754448879166,-1560.83,0.0004,14]
[377602416,1754448879176,-1343.09,0.0004,14]
[377602417,1754448879185,-23579.1975361,0.0004,2]
[377602418,1754448879195,-26548.7788577,0.0004,2]
[377602419,1754448879206,-29518.3601793,0.0004,2]
[377602420,1754448879218,-652.79,0.0004,14]
[377602421,1754448879228,-807.49,0.0004,14]
[377602422,1754448879237,-2272.01,0.0004,14]
[377602423,1754448879248,-439.11,0.0004,14]
[377602424,1754448879259,-400.0,0.0004,14]
[377602425,1754448879268,-1269.54,0.0004,14]
[377602426,1754448879278,-290.60461999,0.0004,14]
[377602427,1754448879288,-1601.77,0.0004,14]
[377602428,1754448879298,-400.0,0.0004,14]
[377602429,1754448879307,-549.88,0.0004,14]
[377602430,1754448879318,-691.52,0.0004,14]
[377602431,1754448879328,-937.63,0.0004,14]
[377602432,1754448879338,-1238.53,0.0004,14]
[377602433,1754448879348,-758.93,0.0004,14]
[377602434,1754448879358,-842.35,0.0004,14]
[377602435,1754448879366,-566.9,0.0004,14]
[377602436,1754448879376,-1884.93,0.0004,14]
[377602437,1754448879385,-1051.66,0.0004,14]
[377602438,1754448879395,-1133.77,0.0004,14]
[377602439,1754448879405,-1340.96,0.0004,14]
[377602440,1754448879415,-1269.95,0.0004,14]
[377602441,1754448879425,-1245.02,0.0004,14]
[377602442,1754448879434,-400.0,0.0004,14]
[377602443,1754448879443,-400.0,0.0004,14]
[377602444,1754448879451,-2140.8545949,0.0004,2]
[377602445,1754448879461,-2407.9610495,0.0004,2]
[377602446,1754448879471,-2675.0675042,0.0004,2]
[377602447,1754448879481,-1135.75,0.0004,14]
[377602448,1754448879489,-400.96,0.0004,14]
[377602449,1754448879499,-888.4,0.0004,14]
[377602450,1754448879508,-1391.51,0.0004,14]
[377602451,1754448879518,-885.84,0.0004,14]
[377602452,1754448879527,-1485.63,0.0004,14]
[377602453,1754448879536,-577.94,0.0004,14]
[377602454,1754448879546,-400.0,0.0004,14]
[377602455,1754448879555,-2205.6,0.0004,14]
[377602456,1754448879564,-594.52,0.0004,14]
[377602457,1754448879573,-516.69,0.0004,14]
[377602458,1754448879582,-400.99,0.0004,14]
[377602459,1754448879591,-798.43,0.0004,14]
[377602460,1754448879600,-963.31,0.0004,14]
[377602461,1754448879610,-825.61,0.0004,14]
[377602462,1754448879620,-1955.89,0.0004,14]
[377602463,1754448879631,-425.14,0.0004,14]
[377602464,1754448879640,-872.75,0.0004,14]
[377602465,1754448879649,-672.46,0.0004,14]
[377602466,1754448879658,-400.0,0.0004,7]
[377602467,1754448879668,-2048.4,0.0004,14]
[377602468,1754448879677,-666.07,0.0004,14]
[377602469,1754448879686,-1186.37,0.0004,14]
[377602470,1754448879695,-1867.25,0.0004,14]
[377602471,1754448879705,-400.0,0.0004,14]
[377602472,1754448879713,-1486.37,0.0004,14]
[377602473,1754448879723,-1282.75,0.0004,14]
[377602474,1754448879733,-620.41,0.0004,14]
[377602475,1754448879742,-426.54,0.0004,14]
[377602476,1754448879751,-546.47,0.0004,14]
[377602477,1754448879760,-1685.19,0.0004,14]
[377602478,1754448879769,-1042.07,0.0004,14]
[377602479,1754448879778,-607.47,0.0004,14]
[377602480,1754448879787,-1387.34,0.0004,14]
[377602481,1754448879796,-1608.62,0.0004,14]
[377602482,1754448879805,-1266.36,0.0004,14]
[377602483,1754448879814,-640.46,0.0004,14]
[377602484,1754448879823,-1198.83,0.0004,14]
[377602485,1754448879832,-400.0,0.0004,14]
[377602486,1754448879842,-850.06,0.0004,14]
[377602487,1754448879851,-1040.96,0.0004,14]
[377602488,1754448879860,-2213.68,0.0004,14]
[377602489,1754448879869,-627.73,0.0004,14]
[377602490,1754448879878,-400.0,0.0004,14]
[377602491,1754448879887,-100530.8638841,0.0004,2]
[377602492,1754448879896,-471.56,0.0004,14]
[377602493,1754448879905,-112937.6541523,0.0004,2]
[377602494,1754448879918,-125344.4444206,0.0004,2]
[377602495,1754448879927,-511.19,0.0004,14]
[377602496,1754448879936,-547.31447474,0.0004,14]
[377602497,1754448879946,-440.85,0.0004,14]
[377602498,1754448879957,-860.58,0.0004,14]
[377602499,1754448879966,-1113.65,0.0004,14]
[377602500,1754448879975,-985.67,0.0004,14]
[377602501,1754448879985,-400.0,0.0004,14]
[377602502,1754448879995,-523.26,0.0004,14]
[377602503,1754448880005,-400.0,0.0004,14]
[377602504,1754448880015,-531.05,0.0004,14]
[377602505,1754448880024,-1788.17,0.0004,14]
[377602506,1754448880033,-1913.41,0.0004,14]
[377602507,1754448880042,-1243.8,0.0004,14]
[377602508,1754448880051,-205.2,0.0004,14]
[377602509,1754448880060,-2195.18,0.0004,14]
[377602510,1754448880069,-400.0,0.0004,14]
[377602511,1754448880080,-400.0,0.0004,14]
[377602512,1754448880091,-973.74,0.0004,14]
[377602513,1754448880101,-400.0,0.0004,14]
[377602514,1754448880111,-511.74,0.0004,14]
[377602515,1754448880121,-1421.29,0.0004,14]
[377602516,1754448880130,-1927.1,0.0004,14]
[377602517,1754448880139,-880.55,0.0004,14]
[377602518,1754448880148,-1559.95,0.0004,14]
[377602519,1754448880156,-1237.93,0.0004,14]
[377602520,1754448880165,-764.11,0.0004,14]
[377602521,1754448880175,-832.23,0.0004,14]
[377602522,1754448880185,-1200.18,0.0004,14]
[377602523,1754448880195,-982.62,0.0004,14]
[377602524,1754448880206,-851.23,0.0004,14]
[377602525,1754448880216,-1009.21,0.0004,14]
[377602526,1754448880226,-1056.91,0.0004,14]
[377602527,1754448880235,-483.16,0.0004,14]
[377602528,1754448880245,-454.78,0.0004,14]
[377602529,1754448880254,-1461.35,0.0004,14]
[377602530,1754448880263,-519.19,0.0004,14]
[377602531,1754448880272,-400.0,0.0004,14]
[377602532,1754448880281,-1050.13,0.0004,14]
[377602533,1754448880291,-2000.0,0.0004,120]
[377602534,1754448880303,-1907.53,0.0004,14]
[377602535,1754448880313,-1615.6,0.0004,14]
[377602536,1754448880323,-1550.81,0.0004,14]
[377602537,1754448880332,-400.0,0.0004,14]
[377602538,1754448880341,-1830.1,0.0004,14]
[377602539,1754448880351,-802.15,0.0004,14]
[377602540,1754448880360,-1088.04,0.0004,14]
[377602541,1754448880369,-417.37,0.0004,14]
[377602542,1754448880378,-1532.37,0.0004,14]
[377602543,1754448880387,-3675.96,0.0004,14]
[377602544,1754448880396,-498.81,0.0004,14]
[377602545,1754448880406,-675.67,0.0004,14]
[377602546,1754448880415,-1930.27,0.0004,14]
[377602547,1754448880424,-477.88,0.0004,14]
[377602548,1754448880434,-1895.26,0.0004,14]
[377602549,1754448880444,-2398.75,0.0004,14]
[377602550,1754448880454,-693.8,0.0004,14]
[377602551,1754448880466,-1056.68,0.0004,14]
[377602552,1754448880476,-400.0,0.0004,14]
[377602553,1754448880487,-187.19,0.0004,14]
[377602554,1754448880497,-1000.88,0.0004,14]
[377602555,1754448880507,-694.7,0.0004,14]
[377602556,1754448880516,-400.0,0.0004,14]
[377602557,1754448880526,-1317.27,0.0004,14]
[377602558,1754448880537,-1087.98,0.0004,14]
[377602559,1754448880547,-1841.73,0.0004,14]
[377602560,1754448880555,-432.07,0.0004,14]
[377602561,1754448880564,-660.48,0.0004,14]
[377602562,1754448880574,-1706.66,0.0004,14]
[377602563,1754448880583,-2115.6,0.0004,14]
[377602564,1754448880591,-2048.1,0.0004,14]
[377602565,1754448880600,-890.38,0.0004,14]
[377602566,1754448880609,-400.0,0.0004,14]
[377602567,1754448880618,-763.76,0.0004,14]
[377602568,1754448880628,-554.46,0.0004,14]
[377602569,1754448880637,-3061.86,0.0004,14]
[377602570,1754448880646,-1869.25,0.0004,14]
[377602571,1754448880655,-1241.1,0.0004,14]
[377602572,1754448880664,-572.41,0.0004,14]
[377602573,1754448880673,-1742.73,0.0004,14]
[377602574,1754448880682,-589.98,0.0004,14]
[377602575,1754448880979,-1978.5,0.0004,14]
[377602576,1754448880998,-1056.28,0.0004,14]
[377602577,1754448881009,-1789.45,0.0004,14]
[377602578,1754448881019,-400.0,0.0004,14]
[377602579,1754448881030,-3264.35,0.0004,14]
[377602580,1754448881040,-719.58,0.0004,14]
[377602581,1754448881049,-1335.74,0.0004,14]
[377602582,1754448881059,-1301.62,0.0004,14]
[377602583,1754448881068,-1906.92,0.0004,14]
[377602584,1754448881078,-2206.71,0.0004,14]
[377602585,1754448881088,-493.26,0.0004,14]
[377602586,1754448881097,-400.0,0.0004,14]
[377602587,1754448881107,-451.74,0.0004,14]
[377602588,1754448881116,-1276.43,0.0004,14]
[377602589,1754448881125,-986.68,0.0004,14]
[377602590,1754448881134,-947.42,0.0004,14]
[377602591,1754448881143,-2195.08,0.0004,14]
[377602592,1754448881152,-1464.57,0.0004,14]
[377602593,1754448881163,-2197.84,0.0004,14]
[377602594,1754448881172,-804.15,0.0004,14]
[377602595,1754448881183,-802.3,0.0004,14]
[377602596,1754448881193,-400.0,0.0004,14]
[377602597,1754448881203,-684.16,0.0004,14]
[377602598,1754448881212,-400.0,0.0004,14]
[377602599,1754448881223,-611.45,0.0004,14]
[377602600,1754448881234,-744.31,0.0004,14]
[377602601,1754448881243,-1536.69,0.0004,14]
[377602602,1754448881252,-2158.92,0.0004,14]
[377602603,1754448881263,-461.52,0.0004,14]
[377602604,1754448881275,-400.0,0.0004,14]
[377602605,1754448881287,-545.58,0.0004,14]
[377602606,1754448881296,-820.58,0.0004,14]
[377602607,1754448881305,-1521.24,0.0004,14]
[377602608,1754448881315,-850.08,0.0004,14]
[377602609,1754448881324,-1086.81,0.0004,14]
[377602610,1754448881334,-2094.08,0.0004,14]
[377602611,1754448881344,-1148.89,0.0004,14]
[377602612,1754448881353,-647.61,0.0004,14]
[377602613,1754448881362,-1804.32,0.0004,14]
[377602614,1754448881372,-688.12,0.0004,14]
[377602615,1754448881382,-521.67,0.0004,14]
[377602616,1754448881392,-575.0,0.0004,14]
[377602617,1754448881403,-460.78,0.0004,14]
[377602618,1754448881414,-1509.88,0.0004,14]
[377602619,1754448881424,-400.0,0.0004,14]
[377602620,1754448881435,-400.0,0.0004,14]
[377602621,1754448881444,-1836.14,0.0004,14]
[377602622,1754448881455,-449.13,0.0004,14]
[377602623,1754448881464,-1622.09,0.0004,14]
[377602624,1754448881474,-2961.28,0.0004,14]
[377602625,1754448881489,-1032.0,0.0004,14]
[377602626,1754448881500,-878.8,0.0004,14]
[377602627,1754448881510,-1829.37,0.0004,14]
[377602628,1754448881521,-2880.34,0.0004,14]
[377602629,1754448881531,-1462.8,0.0004,14]
[377602630,1754448881540,-3418.23,0.0004,14]
[377602631,1754448881552,-1158.06,0.0004,14]
[377602632,1754448881567,-1563.04,0.0004,14]
[377602633,1754448881577,-774.95,0.0004,14]
[377602634,1754448881587,-650.36,0.0004,14]
[377602635,1754448881596,-1923.25,0.0004,14]
[377602636,1754448881606,-2020.14,0.0004,14]
[377602637,1754448881615,-2285.89,0.0004,14]
[377602638,1754448881624,-3412.85,0.0004,14]
[377602639,1754448881633,-444.68,0.0004,14]
[377602640,1754448881643,-400.0,0.0004,14]
[377602641,1754448881651,-1704.34,0.0004,14]
[377602642,1754448881661,-981.32,0.0004,14]
[377602643,1754448881670,-422.51,0.0004,14]
[377602644,1754448881679,-1217.8,0.0004,14]
[377602645,1754448881688,-400.0,0.0004,14]
[377602646,1754448881699,-193.0,0.0004,5]
[377602647,1754448881709,-719.56,0.0004,14]
[377602648,1754448881718,-2049.87,0.0004,14]
[377602649,1754448881727,-2284.92,0.0004,14]
[377602650,1754448881736,-400.0,0.0004,14]
[377602651,1754448881745,-426.16,0.0004,14]
[377602652,1754448881755,-1324.35,0.0004,14]
[377602653,1754448881764,-400.0,0.0004,14]
[377602654,1754448881773,-536.81,0.0004,14]
[377602655,1754448881783,-1978.73,0.0004,14]
[377602656,1754448881792,-2066.75,0.0004,14]
[377602657,1754448881802,-400.0,0.0004,14]
[377602658,1754448881812,-2370.33,0.0004,14]
[377602659,1754448881821,-400.0,0.0004,14]
[377602660,1754448881830,-898.87,0.0004,14]
[377602661,1754448881840,-681.38,0.0004,14]
[377602662,1754448881850,-1380.46,0.0004,14]
[377602663,1754448881860,-1159.52,0.0004,14]
[377602664,1754448881869,-400.0,0.0004,14]
[377602665,1754448881879,-2526.57,0.0004,14]
[377602666,1754448881889,-589.89,0.0004,14]
[377602667,1754448881899,-481.3,0.0004,14]
[377602668,1754448881910,-618.59,0.0004,14]
[377602669,1754448881920,-1918.49,0.0004,14]
[377602670,1754448881929,-1943.34,0.0004,14]
[377602671,1754448881939,-771.1,0.0004,14]
[377602672,1754448881950,-738.49,0.0004,14]
[377602673,1754448881961,-1101.66,0.0004,14]
[377602674,1754448881971,-2119.77,0.0004,14]
[377602675,1754448881981,-2486.07,0.0004,14]
[377602676,1754448881991,-825.89,0.0004,14]
[377602677,1754448882002,-1301.09,0.0004,14]
[377602678,1754448882011,-400.0,0.0004,14]
[377602679,1754448882022,-321.43691274,0.0004,14]
[377602680,1754448882031,-400.0,0.0004,14]
[377602681,1754448882041,-400.0,0.0004,14]
[377602682,1754448882053,-400.0,0.0004,14]
[377602683,1754448882063,-400.0,0.0004,14]
[377602684,1754448882073,-424.16,0.0004,14]
[377602685,1754448882083,-1940.75,0.0004,14]
[377602686,1754448882093,-681.33,0.0004,14]
[377602687,1754448882105,-400.0,0.0004,14]
[377602688,1754448882115,-1594.04,0.0004,14]
[377602689,1754448882124,-400.0,0.0004,14]
[377602690,1754448882134,-1556.67,0.0004,14]
[377602691,1754448882145,-2008.42,0.0004,14]
[377602692,1754448882156,-803.41,0.0004,14]
[377602693,1754448882167,-1049.45,0.0004,14]
[377602694,1754448882184,-2287.11,0.0004,14]
[377602695,1754448882193,-3089.8,0.0004,14]
[377602696,1754448882203,-2094.9,0.0004,14]
[377602697,1754448882212,-2284.3,0.0004,14]
[377602698,1754448882221,-1760.6,0.0004,14]
[377602699,1754448882232,-524.39,0.0004,14]
[377602700,1754448882241,-590.2,0.0004,14]
[377602701,1754448882250,-904.68,0.0004,14]
[377602702,1754448882259,-538.64,0.0004,14]
[377602703,1754448882269,-400.0,0.0004,14]
[377602704,1754448882278,-477.4,0.0004,14]
[377602705,1754448882288,-400.0,0.0004,14]
[377602706,1754448882299,-473.05,0.0004,14]
[377602707,1754448882309,-1562.45,0.0004,14]
[377602708,1754448882319,-681.47,0.0004,14]
[377602709,1754448882328,-1343.91,0.0004,14]
[377602710,1754448882337,-1123.2,0.0004,14]
[377602711,1754448882346,-402.35,0.0004,14]
[377602712,1754448882355,-992.23,0.0004,14]
[377602713,1754448882364,-400.0,0.0004,14]
[377602714,1754448882373,-905.29,0.0004,14]
[377602715,1754448882382,-400.0,0.0004,14]
[377602716,1754448882391,-1620.39,0.0004,14]
[377602717,1754448882400,-1647.26,0.0004,14]
[377602718,1754448882409,-2673.63,0.0004,14]
[377602719,1754448882419,-833.81,0.0004,14]
[377602720,1754448882428,-423.93,0.0004,14]
[377602721,1754448882437,-659.8,0.0004,14]
[377602722,1754448882446,-3032.43,0.0004,14]
[377602723,1754448882455,-400.0,0.0004,14]
[377602724,1754448882471,-2718.79,0.0004,14]
[377602725,1754448882480,-537.68,0.0004,14]
[377602726,1754448882489,-400.0,0.0004,14]
[377602727,1754448882499,-1352.85,0.0004,14]
[377602728,1754448882509,-652.53,0.0004,14]
[377602729,1754448882521,-591.66,0.0004,14]
[377602730,1754448882537,-1194.25,0.0004,14]
[377602731,1754448882546,-1325.26,0.0004,14]
[377602732,1754448882555,-687.17,0.0004,14]
[377602733,1754448882563,-400.0,0.0004,14]
[377602734,1754448882574,-327.86662928,0.0004,14]
[377602735,1754448882584,-2118.84,0.0004,14]
[377602736,1754448882604,-1193.92,0.0004,14]
[377602737,1754448882614,-3219.58,0.0004,14]
[377602738,1754448882624,-2996.94,0.0004,14]
[377602739,1754448882633,-400.0,0.0004,14]
[377602740,1754448882643,-509.96,0.0004,14]
[377602741,1754448882654,-825.46,0.0004,14]
[377602742,1754448882665,-2100.37,0.0004,14]
[377602743,1754448882677,-400.0,0.0004,14]
[377602744,1754448882687,-2113.04,0.0004,14]
[377602745,1754448882698,-445.22,0.0004,14]
[377602746,1754448882708,-400.0,0.0004,14]
[377602747,1754448882717,-400.0,0.0004,14]
[377602748,1754448882726,-1931.44,0.0004,14]
[377602749,1754448882735,-400.0,0.0004,14]
[377602750,1754448882743,-400.0,0.0004,14]
[377602751,1754448882752,-590.55,0.0004,14]
[377602752,1754448882761,-2053.25,0.0004,14]
[377602753,1754448882770,-1620.16,0.0004,14]
[377602754,1754448882779,-1273.79,0.0004,14]
[377602755,1754448882789,-457.71,0.0004,14]
[377602756,1754448882799,-2044.76,0.0004,14]
[377602757,1754448882808,-1325.52,0.0004,14]
[377602758,1754448882817,-3399.61,0.0004,14]
[377602759,1754448882828,-1026.17,0.0004,14]
[377602760,1754448882837,-486.69,0.0004,14]
[377602761,1754448882846,-400.0,0.0004,14]
[377602762,1754448882855,-2493.6,0.0004,14]
[377602763,1754448882864,-723.29,0.0004,14]
[377602764,1754448882873,-651.88,0.0004,14]
[377602765,1754448882882,-400.0,0.0004,14]
[377602766,1754448882892,-903.69,0.0004,14]
[377602767,1754448882901,-1532.92,0.0004,14]
[377602768,1754448882913,-400.0,0.0004,14]
[377602769,1754448882923,-672.26,0.0004,14]
[377602770,1754448882932,-1382.08,0.0004,14]
[377602771,1754448882942,-400.0,0.0004,14]
[377602772,1754448882951,-2614.37,0.0004,14]
[377602773,1754448882960,-677.89,0.0004,14]
[377602774,1754448882969,-400.0,0.0004,14]
[377602775,1754448882979,-579.93,0.0004,14]
[377602776,1754448882989,-832.0,0.0004,14]
[377602777,1754448882998,-400.0,0.0004,14]
[377602778,1754448883007,-717.13,0.0004,14]
[377602779,1754448883016,-400.0,0.0004,14]
[377602780,1754448883026,-1028.28,0.0004,14]
[377602781,1754448883035,-2778.5,0.0004,14]
[377602782,1754448883044,-1985.89,0.0004,14]
[377602783,1754448883052,-400.0,0.0004,14]
[377602784,1754448883061,-1383.95,0.0004,14]
[377602785,1754448883070,-401.1264934,0.0004,14]
[377602786,1754448883079,-2015.29,0.0004,14]
[377602787,1754448883089,-3708.79,0.0004,14]
[377602788,1754448883098,-752.93,0.0004,14]
[377602789,1754448883107,-210.84729098,0.0004,14]
[377602790,1754448883117,-2553.57,0.0004,14]
[377602791,1754448883126,-735.15,0.0004,14]
[377602792,1754448883136,-400.0,0.0004,14]
[377602793,1754448883145,-1607.76,0.0004,14]
[377602794,1754448883154,-400.0,0.0004,14]
[377602795,1754448883163,-2459.31,0.0004,14]
[377602796,1754448883173,-757.96,0.0004,14]
[377602797,1754448883185,-1838.27,0.0004,14]
[377602798,1754448883194,-400.0,0.0004,14]
[377602799,1754448883203,-2248.73,0.0004,14]
[377602800,1754448883215,-865.96,0.0004,14]
[377602801,1754448883226,-842.75,0.0004,14]
[377602802,1754448883236,-1141.46,0.0004,14]
[377602803,1754448883245,-2023.14,0.0004,14]
[377602804,1754448883254,-1074.3,0.0004,14]
[377602805,1754448883263,-1094.22,0.0004,14]
[377602806,1754448883274,-1520.4,0.0004,14]
[377602807,1754448883284,-1903.84,0.0004,14]
[377602808,1754448883295,-715.12,0.0004,14]
[377602809,1754448883306,-450.53196589,0.0004,14]
[377602810,1754448883318,-1769.99,0.0004,14]
[377602811,1754448883328,-3013.96,0.0004,14]
[377602812,1754448883337,-1189.15,0.0004,14]
[377602813,1754448883346,-400.0,0.0004,14]
[377602814,1754448883356,-450.72,0.0004,14]